Cogmind - Beta 13 @@@ ROGUE MODE // 2024.04.01 @ 16:07:25 Player: SnaveSutit Result: Destroyed by Y-54 Guardian with Flak Gun Performance ------------- Evolutions (4) 2000 Regions Visited (7) 1400 Robots Destroyed (75) 375 Value Destroyed (2735) 2735 Prototype IDs (3) 60 Alien Tech Used (0) 0 Bonus (209) 209 TOTAL SCORE: 6779 Bonus ------- High Alert Combat Kills 209 Cogmind --------- Core Integrity 0/850 Matter 300/300 Energy 387/450 System Corruption 0% Temperature Cool (18) Movement Core (1600) Ox31 Location -6/Factory Parts ------- > --- POWER (2) -------- (None) > --- PROPULSION (3) --- (None) > --- UTILITY (8) ------ Power Amplifier Huge Storage Unit Energy Well Advanced Visual Processing Unit Improved Signal Interpreter Improved Targeting Computer > --- WEAPON (2) ------- Heavy Ion Cannon > --- INVENTORY (25) --- Gravity Neutralizer Gravity Neutralizer Gravity Neutralizer Improved Sensor Array System Restoration Module Peak State ------------ > --- POWER ------------ Improved Deuterium Engine Light Angular Momentum Engine > --- PROPULSION ------- Armored Treads Armored Treads Improved Medium Treads > --- UTILITY ---------- Cooling System Huge Storage Unit Gravity Neutralizer Trap Scanner Advanced Visual Processing Unit Improved Signal Interpreter ECM Suite Improved Light Armor Plating > --- WEAPON ----------- Heavy Ion Cannon Heavy Ion Cannon > --- INVENTORY -------- Gravmag System Gravmag System Gravmag System Power Amplifier Improved Heat Sink Energy Well Gravity Neutralizer Gravity Neutralizer Improved Sensor Array Reaction Control System Advanced Beam Cannon Heavy Particle Cannon Ion Cannon Plasma Cannon Heavy Ion Cannon Heavy Ion Cannon Heavy Ion Cannon Gauss Cannon Improved Grenade Launcher [Rating: 57] Favorites ----------- Power Improved Deuterium Engine Engine Improved Deuterium Engine Power Core Micro Nuclear Core Propulsion Light Treads Treads Light Treads Hover Unit Gravmag System Utility ECM Suite Device ECM Suite Storage Huge Storage Unit Processor Improved Signal Interpreter Hackware Hacking Suite Protection Improved Light Armor Plating Weapon Heavy Ion Cannon Energy Gun EM Pulse Gun Energy Cannon Heavy Ion Cannon Ballistic Gun Heavy Assault Rifle Ballistic Cannon Gauss Cannon Launcher Grenade Launcher Build | -11 -10 -10 -10 -9 -8 -7 -6 ------- Run | Yrd Mat Min Exi Min Mat Fac Fac Slots Evolved 8 | . . . . . 4 2 2 Power 1 | . . . . . . 1 . Propulsion 1 | . . . . . . 1 . Utility 6 | . . . . . 4 . 2 Weapon . | . . . . . . . . Parts Attached 95 | 6 2 . . 3 18 15 51 Power 13 | 1 . . . 1 1 3 7 Engine 11 | 1 . . . 1 1 2 6 Core 2 | . . . . . . 1 1 Reactor . | . . . . . . . . Propulsion 21 | 2 . . . . 2 4 13 Treads 13 | 2 . . . . 2 3 6 Leg . | . . . . . . . . Wheel . | . . . . . . . . Hover 8 | . . . . . . 1 7 Flight . | . . . . . . . . Utility 34 | 1 2 . . . 12 2 17 Device 19 | . 1 . . . 5 2 11 Storage 6 | 1 1 . . . 3 . 1 Processor 4 | . . . . . 1 . 3 Hackware 1 | . . . . . 1 . . Protection 4 | . . . . . 2 . 2 Artifact . | . . . . . . . . Weapon 27 | 2 . . . 2 3 6 14 Energy Gun 1 | 1 . . . . . . . Energy Cannon 17 | . . . . . 1 5 11 Ballistic Gun 3 | 1 . . . 1 1 . . Ballistic Cannon 1 | . . . . . . . 1 Launcher 5 | . . . . 1 1 1 2 Special Weapon . | . . . . . . . . Impact Weapon . | . . . . . . . . Slashing Weapon . | . . . . . . . . Piercing Weapon . | . . . . . . . . Special Melee Weapon . | . . . . . . . . Unidentified Prototypes 3 | . . . . . . 2 1 Parts Lost 47 | . . . . 2 3 5 37 Power 11 | . . . . 1 . 1 9 Propulsion 14 | . . . . . 1 2 11 Utility 11 | . . . . . 1 2 8 Weapon 11 | . . . . 1 1 . 9 Highest Loss Streak 10 | . . . . 1 1 3 10 To Critical Strikes . | . . . . . . . . Average Slot Usage (%) 90 | . 98 100 100 94 85 94 87 Engine 10 | . 14 14 14 11 9 13 7 Treads 17 | . 28 28 28 28 15 21 9 Hover 2 | . . . . . . . 7 Device 19 | . 12 14 14 14 17 27 19 Storage 9 | . 14 14 14 14 9 7 7 Processor 8 | . . . . . 6 7 17 Hackware 1 | . . . . . 4 . . Protection 2 | . . . . . 5 . 2 Energy Gun 2 | . 14 14 14 1 . . . Energy Cannon 7 | . . . . . 3 14 11 Ballistic Gun 6 | . 14 14 14 24 11 . . Naked Turns . | . . . . . . . . Heaviest Build 129 | 12 28 28 28 28 102 119 129 Greatest Support 85 | 40 40 40 40 40 43 63 85 Greatest Overweight (x) 36 | . . . . . 3 2 36 Average Overweight (x) 1 | . . . . . . 1 2 Largest Inventory Capacity 25 | 8 15 15 15 15 25 25 25 Average Capacity 20 | 7 8 15 15 15 19 25 25 Most Carried 25 | 4 2 1 1 2 6 23 25 Average Carried 9 | . . 1 1 . 2 16 16 Final Capacity 25 | 8 15 15 15 15 25 25 25 Final Carried 22 | . 1 1 1 1 6 22 5 Class Distribution -------------------- 67% | Mutant 26% | Scavenger-Mutant 3% | Skirmisher 3% | Scavenger-Skirmisher Dominant Class ---------------- Mutant | -10/Materials Mutant | -10/Mines Mutant | -10/Exiles Mutant | -9/Mines Scavenger-Mutant | -8/Materials Mutant | -7/Factory Mutant | -6/Factory Resources | -11 -10 -10 -10 -9 -8 -7 -6 ----------- Run | Yrd Mat Min Exi Min Mat Fac Fac Matter Collected 1561 | 253 38 . . 122 209 314 625 Remotely . | . . . . . . . . Salvage Created 2875 | . 115 . . 206 282 638 1634 Parts 178 | . 6 . . 17 25 39 91 Haulers Intercepted . | . . . . . . . . Recyclers Shooed 1 | . . . . . . . 1 Parts Field Recycled . | . . . . . . . . Retrieved Matter . | . . . . . . . . Parts Self-Destructed . | . . . . . . . . Prevented . | . . . . . . . . Kills | -11 -10 -10 -10 -9 -8 -7 -6 ------- Run | Yrd Mat Min Exi Min Mat Fac Fac Combat Hostiles Destroyed 57 | . 2 . . 9 8 10 28 Guns 13 | . 2 . . 7 4 . . Cannons 33 | . . . . . 1 9 23 AOE 8 | . . . . 2 3 1 2 Classes Destroyed 14 | . 2 . . 1 1 6 4 Worker 3 | . . . . . . . 3 Builder 5 | . . . . . . . 5 Tunneler 1 | . . . . . . . 1 Recycler 2 | . . . . . . 1 1 Operator 1 | . . . . . . 1 . Watcher 6 | . 1 . . . 1 . 4 Swarmer 16 | . . . . 6 4 . 6 Grunt 20 | . 2 . . 3 . 2 13 Brawler 1 | . . . . . . . 1 Sentry 10 | . . . . . 4 2 4 Specialist 2 | . . . . . . 2 . Hunter 1 | . . . . . . 1 . Programmer 5 | . . . . . . 2 3 Heavy 2 | . . . . . . 1 1 Best Kill Streak 6 | . 2 . . 3 4 6 5 Combat Bots Only 6 | . 2 . . 3 4 6 4 Max Kills in Single Turn 3 | . 1 . . 2 3 1 3 Gunslinging . | . . . . . . . . Exploded 3 | . . . . 2 3 1 1 Melee . | . . . . . . . . Uniques/NPCs Destroyed . | . . . . . . . . Combat | -11 -10 -10 -10 -9 -8 -7 -6 -------- Run | Yrd Mat Min Exi Min Mat Fac Fac Hostile Shots Fired 672 | . 13 . . 62 54 109 434 Missed 202 | . 4 . . 17 15 50 116 Damage Taken 6378 | . 115 . . 433 474 922 4434 Core 1159 | . 22 . . 61 144 81 851 Absorbed by Shields 257 | . . . . . . . 257 Core Remaining (%) 81 | 100 . . . 66 73 88 . Volleys Fired 225 | . 9 . . 26 39 29 122 Largest 2 | . 2 . . 2 2 2 2 Hottest 148 | . 60 . . 60 98 143 148 Shots Fired 393 | . 18 . . 47 76 56 196 Gun 141 | . 18 . . 46 71 6 . Cannon 244 | . . . . . 4 47 193 Launcher 8 | . . . . 1 1 3 3 Special . | . . . . . . . . Kinetic 158 | . 9 . . 41 71 6 31 Thermal 213 | . . . . . 4 47 162 Explosive 8 | . . . . 1 1 3 3 Electromagnetic 14 | . 9 . . 5 . . . Robot Hit Streak 21 | . 4 . . 7 7 11 21 Robot Miss Streak 7 | . 3 . . 3 5 3 7 Penetration Max 1 | . . . . . . . 1 Secondary Targets . | . . . . . . . . Shots Hit Robots 235 | . 9 . . 28 33 37 128 Core Hits 120 | . 6 . . 12 18 21 63 Critical Kills 2 | . . . . . . . 2 Critical Parts Destroyed . | . . . . . . . . Critical Strikes 7 | . . . . . . . 7 Meltdown 2 | . . . . . . . 2 Blast 5 | . . . . . . . 5 Melee Attacks . | . . . . . . . . Impact . | . . . . . . . . Slashing . | . . . . . . . . Piercing . | . . . . . . . . Sneak Attacks . | . . . . . . . . Combat Hostiles . | . . . . . . . . Follow-up Attacks . | . . . . . . . . Damage Inflicted 6473 | . 133 . . 418 532 1029 4361 Guns 879 | . 133 . . 304 382 60 . Cannons 4480 | . . . . . 50 781 3649 Explosions 1097 | . . . . 114 100 184 699 Melee . | . . . . . . . . Ramming 17 | . . . . . . 4 13 Kinetic 1473 | . 64 . . 266 382 60 701 Thermal 4181 | . . . . . 50 781 3350 Explosive 695 | . . . . 114 100 184 297 Electromagnetic 107 | . 69 . . 38 . . . Impact . | . . . . . . . . Slashing . | . . . . . . . . Piercing . | . . . . . . . . Highest Corruption 1 | . . . . . . 1 . Average Corruption 1 | . . . . . . 1 . Corruption Purged . | . . . . . . . . Corruption Blocked . | . . . . . . . . Effects 2 | . . . . . . 2 . Matter Fused 1 | . . . . . . 1 . Alerts 1 | . . . . . . 1 . Overload Shots . | . . . . . . . . Overflow Damage 249 | . . . . . 17 . 232 Projectiles 62 | . . . . . . . 62 Explosions 187 | . . . . . 17 . 170 Melee . | . . . . . . . . Knockbacks 5 | . . . . . . . 5 Impact . | . . . . . . . . Kinetic 4 | . . . . . . . 4 Secondary 1 | . . . . . . . 1 Self-Inflicted Damage 384 | . . . . . 6 112 266 Shots 6 | . . . . . 1 1 4 Rammed 3 | . . . . . . 1 2 Targets Rammed 3 | . . . . . . 1 2 Kicked . | . . . . . . . . Crushed . | . . . . . . . . Highest Temperature 538 | . 54 . . 5 8 102 538 Average Temperature 93 | . 34 . . 5 7 41 113 Received Heat Transfer 1683 | . 63 . . 84 81 123 1332 Effects 11 | . . . . . . . 11 Shutdowns 3 | . . . . . . . 3 Interference 6 | . . . . . . . 6 Short Circuit 1 | . . . . . . . 1 Damage (minor) 1 | . . . . . . . 1 Siege Activations . | . . . . . . . . Robots Corrupted . | . . . . . . . . Combat Hostiles . | . . . . . . . . Parts Fried . | . . . . . . . . Impact Corruptions . | . . . . . . . . Robots Melted 3 | . . . . . . . 3 Combat Hostiles 3 | . . . . . . . 3 Parts Melted 17 | . . . . . . . 17 Heat Transferred 5897 | . . . . . 74 1184 4639 Parts Sabotaged . | . . . . . . . . Parts Stolen . | . . . . . . . . Parts Stripped . | . . . . . . . . Power Chain Reactions . | . . . . . . . . Alert | -11 -10 -10 -10 -9 -8 -7 -6 ------- Run | Yrd Mat Min Exi Min Mat Fac Fac Peak Influence 471 | . 72 . . 204 175 182 471 Initial 79 | . . . . . 79 7 37 Average 120 | . 29 . . 146 66 48 255 Maximum Alert Level 2 | . . . . 1 . . 2 Low Security (%) 80 | 100 100 100 . 80 100 100 43 Level 1 5 | . . . . 19 . . 15 Level 2 13 | . . . . . . . 40 Level 3 . | . . . . . . . . Level 4 . | . . . . . . . . Level 5 . | . . . . . . . . High Security . | . . . . . . . . Max Security . | . . . . . . . . Squads Dispatched 11 | . 1 . . . . 4 6 Investigation 2 | . 1 . . . . . 1 Extermination 4 | . . . . . . 2 2 Reinforcement 3 | . . . . . . 2 1 Assault 1 | . . . . . . . 1 Garrison 1 | . . . . . . . 1 Intercept . | . . . . . . . . Searches Triggered . | . . . . . . . . Construction Impeded . | . . . . . . . . Haulers Reinforced . | . . . . . . . . Active Scanning Responses . | . . . . . . . . Cargo Convoy Interrupts . | . . . . . . . . Stealth | -11 -10 -10 -10 -9 -8 -7 -6 --------- Run | Yrd Mat Min Exi Min Mat Fac Fac Distress Signals 5 | . . . . . 1 . 4 Communications Jammed . | . . . . . . . . Distress Signals . | . . . . . . . . Times Spotted 93 | . 3 . . 8 12 13 57 Peak Tracking Total 7 | . 2 . . 3 5 4 7 Tactical Retreats 8 | . . . . . 1 . 7 Traps | -11 -10 -10 -10 -9 -8 -7 -6 ------- Run | Yrd Mat Min Exi Min Mat Fac Fac Traps Triggered 1 | . 1 . . . . . . Indirectly . | . . . . . . . . Trap Hack Attempts . | . . . . . . . . Triggered . | . . . . . . . . Disarmed . | . . . . . . . . Reprogrammed . | . . . . . . . . Reused . | . . . . . . . . Traps Extracted . | . . . . . . . . Installed . | . . . . . . . . Triggered . | . . . . . . . . Machines | -11 -10 -10 -10 -9 -8 -7 -6 ---------- Run | Yrd Mat Min Exi Min Mat Fac Fac Machines Disabled 14 | . . . . . . 2 12 Max in Single Turn 8 | . . . . . . 2 8 Machines Repaired . | . . . . . . . . Machines Dismantled . | . . . . . . . . Machines Sabotaged . | . . . . . . . . Overloaded Fab Kills . | . . . . . . . . Hacking | -11 -10 -10 -10 -9 -8 -7 -6 --------- Run | Yrd Mat Min Exi Min Mat Fac Fac Machines Accessed 7 | . 2 . . 1 . 3 1 Terminals 6 | . 2 . . 1 . 3 . Fabricators . | . . . . . . . . Repair Stations 1 | . . . . . . . 1 Recycling Units . | . . . . . . . . Scanalyzers . | . . . . . . . . Garrison Access . | . . . . . . . . Total Hacks 18 | . 3 . . 9 . 3 3 Successful 10 | . 3 . . 6 . . 1 Failed 8 | . . . . 3 . 3 2 Catastrophic 4 | . . . . 1 . 3 . Database Lockouts . | . . . . . . . . Manual . | . . . . . . . . Terminals 15 | . 3 . . 9 . 3 . Fabricators . | . . . . . . . . Repair Stations 3 | . . . . . . . 3 Recycling Units . | . . . . . . . . Scanalyzers . | . . . . . . . . Garrison Access . | . . . . . . . . Terminal Hacks 9 | . 3 . . 6 . . . Record 8 | . 2 . . 6 . . . Alert Level 1 | . 1 . . . . . . Fabricator Hacks . | . . . . . . . . Repair Station Hacks 1 | . . . . . . . 1 Scan Component 1 | . . . . . . . 1 Recycling Unit Hacks . | . . . . . . . . Scanalyzer . | . . . . . . . . Garrison Access Hacks . | . . . . . . . . Unauthorized Hacks . | . . . . . . . . Terminals . | . . . . . . . . Fabricators . | . . . . . . . . Repair Stations . | . . . . . . . . Recycling Units . | . . . . . . . . Scanalyzers . | . . . . . . . . Garrison Access . | . . . . . . . . Data Cores Recovered 1 | . . . . . . 1 . Used . | . . . . . . . . Hacking Detections 4 | . . . . 1 . 2 1 Full Trace Events 1 | . . . . . . . 1 Feedback Events . | . . . . . . . . Feedback Blocked . | . . . . . . . . Robot Schematics Acquired . | . . . . . . . . Robots Built . | . . . . . . . . Authchips . | . . . . . . . . Time . | . . . . . . . . Total Robot Build Rating . | . . . . . . . . Part Schematics Acquired . | . . . . . . . . Parts Built . | . . . . . . . . Authchips . | . . . . . . . . Time . | . . . . . . . . Total Part Build Rating . | . . . . . . . . Parts Repaired . | . . . . . . . . Time . | . . . . . . . . Parts Recycled . | . . . . . . . . Recycled Matter . | . . . . . . . . Retrieved Matter . | . . . . . . . . Retrieved Components . | . . . . . . . . Parts Scanalyzed . | . . . . . . . . Part Schematics Acquired . | . . . . . . . . Parts Damaged . | . . . . . . . . Bothacking | -11 -10 -10 -10 -9 -8 -7 -6 ------------ Run | Yrd Mat Min Exi Min Mat Fac Fac Used RIF Installer . | . . . . . . . . Robots Hacked . | . . . . . . . . Non-combat . | . . . . . . . . Combat . | . . . . . . . . Robot Hacks Applied . | . . . . . . . . Relay Couplers Released . | . . . . . . . . Fabnet Peak Effective % . | . . . . . . . . Robots Rewired . | . . . . . . . . Allies Hacked . | . . . . . . . . Hacks Repelled . | . . . . . . . . Allies | -11 -10 -10 -10 -9 -8 -7 -6 -------- Run | Yrd Mat Min Exi Min Mat Fac Fac Total Allies . | . . . . . . . . Largest Group . | . . . . . . . . Highest-Rated Group . | . . . . . . . . Highest-Rated Ally . | . . . . . . . . Total Orders . | . . . . . . . . Ally Attacks . | . . . . . . . . Total Damage . | . . . . . . . . Kills . | . . . . . . . . Allies Corrupted . | . . . . . . . . Allies Melted . | . . . . . . . . Intel | -11 -10 -10 -10 -9 -8 -7 -6 ------- Run | Yrd Mat Min Exi Min Mat Fac Fac Robot Analysis Total . | . . . . . . . . Derelict Logs Recovered 3 | . . 1 . 2 . . . Drone Launches . | . . . . . . . . Drone Recoveries . | . . . . . . . . Exploration | -11 -10 -10 -10 -9 -8 -7 -6 ------------- Run | Yrd Mat Min Exi Min Mat Fac Fac Turns Passed 5834 | 98 793 60 71 247 1424 1260 1881 Spaces Moved 1688 | 62 192 38 45 108 410 373 460 Core 13 | 11 . . . . . . 2 Treads 1479 | 51 192 38 45 108 410 373 262 Legs . | . . . . . . . . Wheels . | . . . . . . . . Hover 196 | . . . . . . . 196 Flight . | . . . . . . . . Fastest Speed 50 | 50 160 160 160 160 160 240 232 Average Speed 235 | 140 160 160 160 160 236 253 296 Slowest Speed 1850 | 160 160 160 160 160 400 325 1850 Overloaded Moves . | . . . . . . . . Propulsion Burnouts . | . . . . . . . . Robots Hopped . | . . . . . . . . Cave-ins Triggered . | . . . . . . . . Exploration Rate (%) 17 | 4 33 8 8 24 37 7 17 Regions Visited 7 Branch Regions 3 Pre-discovered Areas . | . . . . . . . . Known Exits Taken 2 | . . . . . 1 1 . Unknown Exits Taken 5 | 1 1 1 1 1 . . . Scrap Searched 1 | . . . . 1 . . . Spaces Dug . | . . . . . . . . Terrain Destroyed 157 | . . . . 10 8 34 105 Melee . | . . . . . . . . Projectile 21 | . . . . . 2 1 18 AOE 136 | . . . . 10 6 33 87 Terrain Rammed . | . . . . . . . . Walls Destroyed . | . . . . . . . . Machines Disabled . | . . . . . . . . Actions | -11 -10 -10 -10 -9 -8 -7 -6 --------- Run | Yrd Mat Min Exi Min Mat Fac Fac Total 3156 | 73 660 37 44 139 796 630 777 Wait 1044 | . 454 . . . 302 184 104 Move 1681 | 61 191 37 44 107 409 372 460 Hop . | . . . . . . . . Pick Up 81 | 6 3 . . 2 20 25 25 Fast Attach . | . . . . . . . . Attach 62 | 6 1 . . 3 8 5 39 Detach 5 | . . . . 1 . . 4 Swap 33 | . 1 . . . 10 10 12 Drop 22 | . 1 . . . 8 4 9 Fire 225 | . 9 . . 26 39 29 122 Melee . | . . . . . . . . Ram 2 | . . . . . . . 2 Kick . | . . . . . . . . Crush 1 | . . . . . . 1 . Escape Stasis . | . . . . . . . . Rewire . | . . . . . . . . Trap . | . . . . . . . . Miscellaneous . | . . . . . . . . Route ------- -11/Scrapyard -10/Materials -10/Mines -10/Exiles -9/Mines -8/Materials (discovered 2 exits: *Fac x2) -7/Factory -6/Factory History --------- Turn | Location | Event 7 | -11/Scrapyard | Discovered new exit (range 16) 99 | -11/Scrapyard | Entered Materials 317 | -10/Materials | Build established: Mutant 742 | -10/Materials | Discovered new exit (range 13) 892 | -10/Materials | Entered Mines 916 | -10/Mines | Learned Materials stockpile data 937 | -10/Mines | Deemed a non-threat by the Exiles lab entrance 939 | -10/Mines | Discovered new exit (range 5) 952 | -10/Mines | Entered Exiles 976 | -10/Exiles | Discovered new exit (range 14) 1023 | -10/Exiles | Entered Mines 1122 | -9/Mines | Learned Materials interactive machine intel 1146 | -9/Mines | Learned Materials terminal intel 1228 | -9/Mines | Discovered new exit (range 12) 1270 | -9/Mines | Entered Materials 1270 | -8/Materials | Evolved 4 slots: Utility x4 1272 | -8/Materials | Loaded intel: 19 interactive machine locations 1273 | -8/Materials | Loaded intel: 12 terminal locations 1652 | -8/Materials | Discovered new exit (range 16) 1732 | -8/Materials | Build established: Scavenger-Mutant 2633 | -8/Materials | Discovered new exit (range 16) 2678 | -8/Materials | Identified exit to Factory 2694 | -8/Materials | Entered Factory 2694 | -7/Factory | Evolved 2 slots: Power x1, Propulsion x1 2725 | -7/Factory | Build established: Mutant 3855 | -7/Factory | Discovered new exit (range 15) 3865 | -7/Factory | Lost 3 parts (1p1n1u) 3951 | -7/Factory | Identified exit to Factory 3954 | -7/Factory | Entered another Factory area 3954 | -6/Factory | Evolved 2 slots: Utility x2 4258 | -6/Factory | Lost 3 parts (1p1n1u) 4770 | -6/Factory | Garrison activated, responded to threat 5026 | -6/Factory | Lost 10 parts (2p3n2u3w) 5197 | -6/Factory | Core integrity fell below 50% 5684 | -6/Factory | Core integrity fell below 20% 5704 | -6/Factory | First assault squad dispatched 5719 | -6/Factory | Lost 9 parts (2p4n1u2w) 5835 | -6/Factory | Destroyed by Y-54 Guardian with Flak Gun Last Messages --------------- R-10 Processor collects Carbon-fiber Leg. Destroyed Broken Lgt. Antimatter Reactor. Adv. Beam Cannon destroyed. Lgt. Angular Momentum Engine destroyed. Imp. Heat Sink destroyed. R-10 Processor collects Autogun. G-67 Veteran heat damages Field Laser. Flexi-carbon Leg melted. Adv. Heat Sink melted. Field Laser melted. G-67 Veteran destroyed. R-10 Processor collects Flexi-carbon Leg. ECM Suite destroyed. Gravmag System destroyed. Y-54 Guardian suffers critical hit (Meltdown). Gatling Laser melted. Imp. Heat Sink melted. Plasma Cannon destroyed. Acquired 10 matter. [Achievement: 5k Club] Map ----- +----------------------------------------------------+ | ?????????????????????????????????????????????????? | | ?????????????????????????????????????????????????? | | ?????????????????????????????????????????????????? | | ?????????????????????????????????????????????????? | | ?????????????????????????????????????????????????? | | ?????????????????????????????????????????????????? | | ????????????????????????? ?????????????????????? | | ????????????????????????? ?????????????????????? | | ????????????????????????? ????????????????????? | | ?????????????????????????**/ ????????????????????? | | ?????????????????????????**/ ????????????????????? | | ?????????????????????????*]/ ????????????????????? | | ????????????????????????? ?????????????????????? | | ????????????????????????? ?????????????????????? | | ????????????????????????? ?????????????????????? | | ????????????????????????? ?????????????????????? | | ????????????????????????? !?????????????????????? | | ????????????????????????? !?????????????????????? | | ?????????????????????????# #?????????????????????? | | ?????????????????????????# #?????????????????????? | | ?????????????????????????#k#?????????????????????? | | ?????????????????????????# #???????#?????????????? | | ????????????????????????## #?????" #?????????????? | | ????????????????????????## ##?? """#?????????????? | | ????# ###############m # S"#?????????????? | | % !==%*%= % @ %Y /! #?????????????? | | ????????#################!% # !! #?????????????? | | ????????????????????????##%##??# ###?????????????? | | ?????????????????????????#%##????????????????????? | | ?????????????????????????#=##????????????????????? | | ?????????????????????????#=#?????????????????????? | | ?????????????????????????#%#?????????????????????? | | ?????????????????????????#=#?????????????????????? | | ?????????????????????????#%#?????????????????????? | | ?????????????????????????#=#?????????????????????? | | ?????????????????????????#*#?????????????????????? | | ?????????????????????????# ########??????????????? | | ?????????????????????????# #! #??????????????? | | ?????????????????????????# # """"#??????????????? | | ?????????????????????????# #]!""""#??????????????? | | ?????????????????????????# # """"#??????????????? | | ?????????????????????????# + """"#??????????????? | | ?????????????????????????# # #??????????????? | | ?????????????????????????# ########??????????????? | | ?????????????????????????# #?????????????????????? | | ?????????????????????????# #?????????????????????? | | ??????#################### #?????????????????????? | | ??????# ^ % #?????????????????????? | | ??????# !%####### #?????????????????????? | | ?###### ^ !##"#### #?????????????????????? | +----------------------------------------------------+ Best States ------------- Heat Dissipation 59 Energy Generation 29 Energy Capacity 675 Matter Stores 300 Matter Capacity 300 Sight Range 20 Robot Scan Range 15 Terrain Scan Density 10 ECM Strength 3 Additional Mass Support 12 Armor Coverage 150 Evasion (%) 50 Targeting Accuracy 6 Recoil Reduction 3 Offensive Hacking 10 Item Schematics ----------------- None Robot Schematics ------------------ None Fabricated ------------ Nothing Alien Tech Used ----------------- None Achievements -------------- 5k Club I Spy Please Form A Line Serviceable Loadout Significant Disruption Troublemaker Challenges ------------ None Game ------ Seed MultinovaThrowingGenerator Manual? 0 Play Time 01:03:00 Cumulative 4.9 hours Start 2024.04.01 @ 15:04:45 End 2024.04.01 @ 16:07:25 Sessions 1 Manual Loads 0 Difficulty Rogue Special Mode None Game No. 5 Rogue 5 Adventurer 0 Explorer 0 Win Type - Total 0 Types 0/0/0/0/0/0/0/0/0 Lore% 11 Gallery% 12 Achievement% 11 Wizard Run 0 Options --------- Layout 1 ASCII 0 Keyboard 0 Movement Mouse Keybinds 0 Fullscreen 2 Font 24/Smallcaps Map View 50x35 Zoom Use 0% Tactical HUD 0 Map Filters NONE Filters NONE Steam 1 RUN: 6efbb68a-37fe-44b3-86c8-c40c07b4940c